fUSD/lending_fUSD_20250923
["ID","MTS","AMOUNT","RATE_DAILY","PERIOD"]
[387165665,1758601839945,-400.0,0.0001998,2]
[387165666,1758601839954,-402.88,0.0001998,2]
[387165667,1758601839964,-400.0,0.0001998,2]
[387165668,1758601839973,-400.0,0.0001998,2]
[387165669,1758601839983,-400.0,0.0001998,2]
[387165670,1758601839992,-876.93,0.0001998,2]
[387165671,1758601840001,-400.0,0.0001998,2]
[387165672,1758601840011,-610.92,0.0001998,2]
[387165673,1758601840020,-400.0,0.0001998,2]
[387165674,1758601840029,-400.0,0.0001998,2]
[387165675,1758601840038,-541.89,0.0001998,2]
[387165676,1758601840047,-742.87,0.0001998,2]
[387165677,1758601840057,-400.0,0.0001998,2]
[387165678,1758601840066,-400.0,0.0001998,2]
[387165679,1758601840075,-400.0,0.0001998,2]
[387165683,1758601840321,-400.0,0.0001998,2]
[387165684,1758601840331,-400.0,0.0001998,2]
[387165685,1758601840340,-400.0,0.0001998,2]
[387165686,1758601840349,-400.0,0.0001998,2]
[387165687,1758601840359,-400.0,0.0001998,2]
[387165688,1758601840368,-420.46,0.0001998,2]
[387165689,1758601840378,-400.0,0.0001998,2]
[387165690,1758601840387,-446.47,0.0001998,2]
[387165691,1758601840398,-400.0,0.0001998,2]
[387165692,1758601840407,-431.24000001,0.0001998,2]
[387165693,1758601840417,-400.0,0.0001998,2]
[387165694,1758601840427,-241.78818142,0.0001998,2]
[387165695,1758601840437,-400.0,0.0001998,2]
[387165696,1758601840447,-283.86369785,0.0001998,2]
[387165697,1758601840457,-400.0,0.0001998,2]
[387165698,1758601840466,-400.0,0.00019981,2]
[387165699,1758601840476,-400.0,0.00019981,2]
[387165700,1758601840485,-400.0,0.00019981,2]
[387165701,1758601840495,-407.30728513,0.00019981,2]
[387165702,1758601840505,-401.22577264,0.00019981,2]
[387165703,1758601840514,-401.4365558,0.00019981,2]
[387165704,1758601840523,-400.0,0.00019981,2]
[387165705,1758601840533,-397.74875878,0.00019981,2]
[387165706,1758601840543,-400.60247344,0.00019981,2]
[387165707,1758601840553,-400.0,0.00019981,2]
[387165708,1758601840562,-400.0,0.00019981,2]
[387165709,1758601840571,-402.22829673,0.00019981,2]
[387165710,1758601840581,-401.23772548,0.00019981,2]
[387165711,1758601840590,-400.0,0.00019981,2]
[387165712,1758601840600,-400.0,0.00019981,2]
[387165713,1758601840609,-402.43654126,0.00019981,2]
[387165714,1758601840618,-400.0,0.00019981,2]
[387165715,1758601840628,-400.0,0.00019981,2]
[387165716,1758601840637,-400.0,0.00019981,2]
[387165717,1758601840646,-400.0,0.00019981,2]
[387165718,1758601840656,-402.77798374,0.00019981,2]
[387165719,1758601840666,-400.0,0.00019981,2]
[387165720,1758601840675,-400.0,0.00019981,2]
[387165721,1758601840685,-400.0,0.00019981,2]
[387165722,1758601840694,-400.0,0.00019981,2]
[387165723,1758601840703,-400.0,0.00019981,2]
[387165724,1758601840713,-400.0,0.00019981,2]
[387165725,1758601840722,-400.0,0.00019981,2]
[387165726,1758601840732,-400.0,0.00019981,2]
[387165727,1758601840742,-400.0,0.00019981,2]
[387165728,1758601840751,-400.0,0.00019981,2]
[387165729,1758601840760,-401.58406764,0.00019981,2]
[387165730,1758601840770,-400.0,0.00019981,2]
[387165731,1758601840779,-400.0,0.00019981,2]
[387165732,1758601840788,-258.0586795,0.00019981,2]
[387165733,1758601840798,-400.0,0.00019981,2]
[387165734,1758601840808,-400.0,0.00019981,2]
[387165735,1758601840818,-292.09,0.0001999,2]
[387165737,1758601840827,-152.38,0.0001999,2]
[387165739,1758601840837,-152.38,0.0001999,2]
[387165741,1758601840847,-152.38,0.0001999,2]
[387165743,1758601840857,-152.38,0.0001999,2]
[387165744,1758601840868,-152.38,0.0001999,2]
[387165745,1758601840878,-152.38,0.0001999,2]
[387165746,1758601840892,-151.0,0.00019997,2]
[387165747,1758601840902,-151.0,0.00019997,2]
[387165748,1758601840912,-400.0,0.00019999,2]
[387165749,1758601840922,-400.0,0.00019999,2]
[387165750,1758601840931,-400.0,0.00019999,2]
[387165751,1758601840940,-400.0,0.00019999,2]
[387165752,1758601840950,-400.0,0.00019999,2]
[387165753,1758601840959,-400.0,0.00019999,2]
[387165754,1758601840968,-400.0,0.00019999,2]
[387165755,1758601840978,-400.0,0.00019999,2]
[387165756,1758601840987,-400.0,0.00019999,2]
[387165757,1758601840996,-460.86,0.00019999,2]
[387165758,1758601841006,-388.42413661,0.00019999,2]
[387165759,1758601841015,-695.62,0.00019999,2]
[387165760,1758601841025,-400.0,0.00019999,2]
[387165761,1758601841034,-400.0,0.00019999,2]
[387165762,1758601841044,-400.0,0.00019999,2]
[387165764,1758601841054,-400.0,0.00019999,2]
[387165765,1758601841064,-400.0,0.00019999,2]
[387165766,1758601841073,-400.0,0.00019999,2]
[387165767,1758601841082,-414.17,0.00019999,2]
[387165768,1758601841091,-400.0,0.00019999,2]
[387165769,1758601841100,-558.06,0.00019999,2]
[387165770,1758601841109,-995.71,0.00019999,2]
[387165771,1758601841118,-516.78808761,0.00019999,2]
[387165772,1758601841127,-400.0,0.00019999,2]
[387165773,1758601841136,-868.64,0.00019999,2]
[387165774,1758601841146,-313.89476647,0.00019999,2]
[387165775,1758601841155,-400.0,0.00019999,2]
[387165776,1758601841168,-400.0,0.00019999,2]
[387165777,1758601841180,-400.0,0.00019999,2]
[387165778,1758601841189,-400.0,0.00019999,2]
[387165779,1758601841198,-553.72,0.00019999,2]
[387165780,1758601841208,-748.76,0.00019999,2]
[387165781,1758601841217,-400.0,0.00019999,2]
[387165782,1758601841227,-400.0,0.00019999,2]
[387165783,1758601841237,-400.0,0.00019999,2]
[387165784,1758601841246,-407.49,0.00019999,2]
[387165785,1758601841255,-485.14,0.00019999,2]
[387165786,1758601841264,-400.0,0.00019999,2]
[387165787,1758601841273,-400.0,0.00019999,2]
[387165788,1758601841283,-400.0,0.00019999,2]
[387165789,1758601841292,-400.0,0.00019999,2]
[387165790,1758601841301,-400.0,0.00019999,2]
[387165791,1758601841311,-400.0,0.00019999,2]
[387165792,1758601841320,-400.0,0.00019999,2]
[387165793,1758601841330,-500.0,0.00019999,2]
[387165794,1758601841339,-1088.38,0.00019999,2]
[387165795,1758601841348,-1714.8,0.00019999,2]
[387165796,1758601841358,-400.56909761,0.00019999,2]
[387165797,1758601841368,-400.0,0.00019999,2]
[387165798,1758601841377,-401.5372078,0.00019999,2]
[387165799,1758601841387,-400.0,0.00019999,2]
[387165800,1758601841396,-400.0,0.00019999,2]
[387165801,1758601841406,-400.0,0.00019999,2]
[387165802,1758601841415,-400.0,0.00019999,2]
[387165803,1758601841425,-400.0,0.00019999,2]
[387165804,1758601841435,-400.0,0.00019999,2]
[387165805,1758601841444,-400.0,0.00019999,2]
[387165806,1758601841454,-400.0,0.00019999,2]
[387165807,1758601841463,-429.48,0.00019999,2]
[387165808,1758601841473,-400.0,0.00019999,2]
[387165809,1758601841482,-400.0,0.00019999,2]
[387165810,1758601841492,-400.0,0.00019999,2]
[387165811,1758601841501,-411.04,0.00019999,2]
[387165812,1758601841510,-400.0,0.00019999,2]
[387165813,1758601841519,-400.0,0.00019999,2]
[387165814,1758601841529,-528.03,0.00019999,2]
[387165815,1758601841539,-400.0,0.00019999,2]
[387165816,1758601841548,-400.0,0.00019999,2]
[387165817,1758601841558,-400.0,0.00019999,2]
[387165818,1758601841568,-401.85895117,0.00019999,2]
[387165819,1758601841578,-400.0,0.00019999,2]
[387165820,1758601841588,-400.0,0.00019999,2]
[387165821,1758601841599,-400.0,0.00019999,2]
[387165822,1758601841608,-400.0,0.00019999,2]
[387165823,1758601841619,-400.0,0.00019999,2]
[387165824,1758601841628,-400.0,0.00019999,2]
[387165825,1758601841642,-402.28688805,0.00019999,2]
[387165826,1758601841652,-400.0,0.00019999,2]
[387165827,1758601841664,-535.27,0.00019999,2]
[387165828,1758601841674,-192.161837,0.00019999,2]
[387165829,1758601841685,-400.0,0.00019999,2]
[387165830,1758601841696,-400.0,0.00019999,2]
[387165831,1758601841706,-400.0,0.00019999,2]
[387165832,1758601841716,-400.0,0.00019999,2]
[387165833,1758601841726,-221.19463109,0.00019999,2]
[387165834,1758601841735,-2972.61916308,0.0002,2]
[387165835,1758601841745,-739615.04954214,0.0002,2]
[387165836,1758601841755,-796.83,0.0002,2]
[387165837,1758601841765,-395758.28774421,0.0002,2]
[387165838,1758601841775,-6513.21534603,0.0002,5]
[387165839,1758601841784,-414313.84879683,0.0002,2]
[387165840,1758601842317,-400.0,0.00019999,2]
[387165841,1758601842327,-392.38485082,0.00019999,2]
[387165842,1758601842337,-202.791029,0.00019999,2]
[387165843,1758601842346,-10237.82412018,0.0002,2]
[387166086,1758601949523,1930.0,0.00030137,120]
[387166088,1758602247651,953.86,0.00030137,120]
[387166089,1758602384259,151.09,9.542e-05,2]
[387166090,1758602384455,151.09,0.00010276,2]
[387166091,1758602384867,151.09,0.0001101,2]
[387166092,1758602385097,151.09,0.00011745,2]
[387166093,1758602385287,151.09,0.00012479,2]
[387166094,1758602385514,151.09,0.00013213,2]
[387166095,1758602386061,151.09,0.00013947,2]
[387166096,1758602386208,151.09,0.00014681,2]
[387166097,1758602386254,151.09,0.00015415,2]
[387166098,1758602386388,151.09,0.00016149,2]
[387166099,1758602386599,151.09,0.00016883,2]
[387166100,1758602386795,151.09,0.00017617,2]
[387166101,1758602387011,151.09,0.00018351,2]
[387166102,1758602456127,527.0,0.0003,120]
[387166103,1758602460810,150.0,0.00019027,7]
[387166104,1758602539911,250.0,0.00015,2]
[387166105,1758602550742,270.0,0.000195,11]
[387166106,1758602553393,810.209,0.00030136,120]
[387166107,1758602721771,-5000000.0,0.00035738,30]
[387166108,1758602727960,-2012881.88501773,0.00035738,30]
[387166109,1758602727986,-5000.0,0.00035738,33]
[387166110,1758602728011,-19404.738588,0.00035738,35]
[387166111,1758602728037,-165.03906479,0.00035738,30]
[387166112,1758602728062,-155.29135112,0.00035738,30]
[387166113,1758602728087,-152.9870196,0.00035738,30]
[387166114,1758602728112,-7739.9537311,0.00035738,30]
[387166115,1758602728138,-133693.29056976,0.00035738,30]
[387166116,1758602728163,-11000.0,0.00035738,30]
[387166117,1758602728190,-2809806.8146579,0.00035738,30]
[387166118,1758602733183,-2902431.71896331,0.00035738,30]
[387166119,1758602733212,-4593.8555365,0.00035738,30]
[387166120,1758602733238,-4687.08529016,0.00035738,30]
[387166121,1758602733265,-3597.95827098,0.00035738,30]
[387166122,1758602733292,-4406.63033323,0.00035738,30]
[387166123,1758602733318,-3663.67990617,0.00035738,30]
[387166124,1758602733343,-3802.23107013,0.00035738,30]
[387166125,1758602733368,-3587.63717022,0.00035738,30]
[387166126,1758602733394,-2069229.2034593,0.00035738,30]
[387166127,1758602738012,-300770.7965407,0.00035738,30]
[387166128,1758602738036,-767.4733906,0.00035738,35]
[387166129,1758602738060,-7100.0,0.00035738,30]
[387166130,1758602738084,-12674.6018937,0.00035738,30]
[387166131,1758602738107,-5000.0,0.00035738,32]
[387166132,1758602738131,-38000.0070546,0.00035738,30]
[387166133,1758602738156,-26330.28776688,0.00035738,30]
[387166134,1758602738184,-155.77783244,0.00035738,30]
[387166135,1758602738209,-68905.83221332,0.00035738,30]
[387166136,1758602738233,-6330.5499088,0.00035738,30]
[387166137,1758602738258,-25983.07968535,0.00035738,30]
[387166138,1758602738282,-153.881311,0.00035738,30]
[387166139,1758602738306,-152.57802763,0.00035738,30]
[387166140,1758602738330,-6616.75435548,0.00035738,30]
[387166141,1758602738354,-45242.0,0.00035738,30]
[387166142,1758602738378,-12200.35884194,0.00035738,30]
[387166143,1758602738402,-321.43429191,0.00035738,30]
[387166144,1758602738430,-67757.36896235,0.00035738,30]
[387166145,1758602738454,-785.438242,0.00035738,35]
[387166146,1758602738479,-169862.11605421,0.00035738,30]
[387166147,1758602738505,-27479.3642802,0.00035738,30]
[387166148,1758602738532,-4177410.29934689,0.00035738,30]
[387166149,1758602746153,-5000000.0,0.00035738,30]
[387166150,1758602749511,-5000000.0,0.00035738,30]
[387166151,1758602839138,-140.24840087,0.00035738,120]
[387166152,1758602839163,-3000.0,0.00035738,120]
[387166153,1758602839187,-2964.42651413,0.00035738,90]
[387166154,1758602839211,-1046.05133142,0.00035738,120]
[387166155,1758602839236,-190.75155266,0.00035738,60]
[387166156,1758602839258,-2391.44488228,0.00035738,120]
[387166157,1758602839282,-491.91084844,0.00035738,120]
[387166158,1758602839306,-165.67131783,0.00035738,120]
[387166159,1758602839330,-377.0,0.00035738,120]
[387166160,1758602839354,-2475.72139142,0.00035738,120]
[387166161,1758602839377,-2633.94025273,0.00035738,120]
[387166162,1758602839401,-2307.28902931,0.00035738,120]
[387166163,1758602839425,-2252.60118688,0.00035738,120]
[387166164,1758602839449,-656.89492734,0.00035738,120]
[387166165,1758602839477,-561.42814104,0.00035738,120]
[387166166,1758602839500,-4833.39319384,0.00035738,120]
[387166167,1758602839524,-565.36,0.00035738,120]
[387166168,1758602839551,-565.36,0.00035738,120]
[387166169,1758602839575,-565.36,0.00035738,120]
[387166170,1758602839600,-565.36,0.00035738,120]
[387166171,1758602839625,-565.36,0.00035738,120]
[387166172,1758602839650,-565.36,0.00035738,120]
[387166173,1758602839674,-565.36,0.00035738,120]
[387166174,1758602839699,-565.36,0.00035738,120]
[387166175,1758602839724,-565.36,0.00035738,120]
[387166176,1758602839750,-565.36,0.00035738,120]
[387166177,1758602839775,-565.36,0.00035738,120]
[387166178,1758602839801,-565.36,0.00035738,120]
[387166179,1758602839825,-565.36,0.00035738,120]
[387166180,1758602839851,-565.36,0.00035738,120]
[387166181,1758602839875,-565.36,0.00035738,120]
[387166182,1758602839901,-565.36,0.00035738,120]
[387166183,1758602839927,-565.36,0.00035738,120]
[387166184,1758602839953,-565.36,0.00035738,120]
[387166185,1758602839979,-565.36,0.00035738,120]
[387166186,1758602840004,-565.36,0.00035738,120]
[387166187,1758602840029,-565.36,0.00035738,120]
[387166188,1758602840054,-565.36,0.00035738,120]
[387166189,1758602840078,-565.36,0.00035738,120]
[387166190,1758602840102,-565.4065,0.00035738,120]
[387166191,1758602840126,-317.19910765,0.00035738,120]
[387166192,1758602840150,-2180.81484271,0.00035738,120]
[387166193,1758602840174,-171.73958693,0.00035738,120]
[387166194,1758602840198,-997.79323034,0.00035738,120]
[387166195,1758602840222,-3317.10121592,0.00035738,120]
[387166196,1758602840247,-179.0840232,0.00035738,120]
[387166197,1758602840603,-176.66452604,0.00035738,120]
[387166198,1758602840629,-2973.73100449,0.00035738,120]
[387166199,1758602840654,-569.25021237,0.00035738,120]
[387166200,1758602840679,-171.14659403,0.00035738,120]
[387166201,1758602840703,-500.0,0.00035738,120]
[387166202,1758602840728,-500.0,0.00035738,120]
[387166203,1758602840753,-500.0,0.00035738,120]
[387166204,1758602840780,-696.10297336,0.00035738,120]
[387166205,1758602840804,-500.0,0.00035738,120]
[387166206,1758602840828,-622.17447658,0.00035738,120]
[387166207,1758602840852,-2140.0318982,0.00035738,120]
[387166208,1758602840877,-477.64982337,0.00035738,120]
[387166209,1758602840901,-190.01947813,0.00035738,120]
[387166210,1758602840926,-598.95986571,0.00035738,120]
[387166211,1758602840951,-2593.82843263,0.00035738,120]
[387166212,1758602840976,-267.04685498,0.00035738,120]
[387166213,1758602841000,-210.06254454,0.00035738,120]
[387166214,1758602841024,-2898.1965864,0.00035738,120]
[387166215,1758602841048,-279.62351883,0.00035738,120]
[387166216,1758602841072,-2345.93399225,0.00035738,120]
[387166217,1758602841096,-204.68585859,0.00035738,120]
[387166218,1758602841120,-157.33616716,0.00035738,120]
[387166219,1758602841143,-311.45447322,0.00035738,120]
[387166220,1758602841167,-2825.99880164,0.00035738,120]
[387166221,1758602841191,-154.37782,0.00035738,60]
[387166222,1758602841214,-449.8174,0.00035738,60]
[387166223,1758602841238,-1946.89844408,0.00035738,120]
[387166224,1758602841262,-349.77143788,0.00035738,120]
[387166225,1758602841286,-4005.28768968,0.00035738,120]
[387166226,1758602841310,-1832.0,0.00035738,120]
[387166227,1758602841334,-28000.0,0.00035738,120]
[387166228,1758602841359,-3366.24,0.00035738,120]
[387166229,1758602841385,-3366.24,0.00035738,120]
[387166230,1758602841411,-3366.24,0.00035738,120]
[387166231,1758602841436,-3366.24,0.00035738,120]
[387166232,1758602841462,-3366.24,0.00035738,120]
[387166233,1758602841487,-3366.24,0.00035738,120]
[387166234,1758602841511,-3366.24,0.00035738,120]
[387166235,1758602841537,-3366.24,0.00035738,120]
[387166236,1758602841562,-3366.24,0.00035738,120]
[387166237,1758602841588,-3366.24,0.00035738,120]
[387166238,1758602841615,-3366.24,0.00035738,120]
[387166239,1758602841643,-3366.24,0.00035738,120]
[387166240,1758602841672,-3366.24,0.00035738,120]
[387166241,1758602841699,-3366.24,0.00035738,120]
[387166242,1758602841726,-3366.24,0.00035738,120]
[387166243,1758602841752,-3366.24,0.00035738,120]
[387166244,1758602841780,-3366.24,0.00035738,120]
[387166245,1758602841807,-3366.24,0.00035738,120]
[387166246,1758602841835,-3366.24,0.00035738,120]
[387166247,1758602841861,-3366.24,0.00035738,120]
[387166248,1758602841888,-3366.24,0.00035738,120]
[387166249,1758602841916,-3366.24,0.00035738,120]
[387166250,1758602841942,-3366.24,0.00035738,120]
[387166251,1758602841969,-3366.4499,0.00035738,120]
[387166252,1758602841993,-8888.41023803,0.00035738,60]
[387166253,1758602842017,-4861.56031638,0.00035738,120]
[387166254,1758602842045,-800.0,0.00035738,60]
[387166255,1758602842069,-2000.0,0.00035738,120]
[387166256,1758602842093,-5000.0,0.00035738,120]
[387166257,1758602842118,-21000.0,0.00035738,120]
[387166258,1758602842141,-21684.69305224,0.00035738,120]
[387166259,1758602842166,-5390.349974,0.00035738,120]
[387166260,1758602842190,-4407.32707573,0.00035738,91]
[387166261,1758602842214,-830.66994096,0.00035738,120]
[387166262,1758602842238,-4909.64169415,0.00035738,120]
[387166263,1758602842266,-7357.45727835,0.00035738,120]
[387166264,1758602842290,-5279.22543844,0.00035738,90]
[387166265,1758602842314,-4633.53013435,0.00035738,120]
[387166266,1758602842338,-4508.23326986,0.00035738,120]
[387166267,1758602842362,-3510.78692101,0.00035738,120]
[387166268,1758602842390,-4420.04116708,0.00035738,120]
[387166269,1758602842414,-7613.87797214,0.00035738,120]
[387166270,1758602842438,-5569.60081282,0.00035738,120]
[387166271,1758602842465,-4427.73024822,0.00035738,120]
[387166272,1758602842489,-4194.65602725,0.00035738,60]
[387166273,1758602842517,-3584.89033991,0.00035738,120]
[387166274,1758602842543,-7015.55726731,0.00035738,120]
[387166275,1758602842567,-10396.85881906,0.00035738,120]
[387166276,1758602842591,-3558.86518477,0.00035738,120]
[387166277,1758602842615,-7296.27205146,0.00035738,120]
[387166278,1758602842640,-3911.89312701,0.00035738,120]
[387166279,1758602842664,-4522.82880703,0.00035738,60]
[387166280,1758602842688,-4885.82665756,0.00035738,120]
[387166281,1758602842712,-4243.23869764,0.00035738,60]
[387166282,1758602842737,-1185.58196123,0.00035738,120]
[387166283,1758602842761,-10000.0,0.00035738,60]
[387166284,1758602842786,-5007.89078382,0.00035738,120]
[387166285,1758602842811,-9379.76782731,0.00035738,120]
[387166286,1758602842836,-6595.0,0.00035738,120]
[387166287,1758602842861,-26806.92,0.00035738,60]
[387166288,1758602842885,-1104.0,0.00035738,120]
[387166289,1758602842910,-1115.17724922,0.00035738,120]
[387166290,1758602842934,-2530.38213307,0.00035738,120]
[387166291,1758602842961,-5000.0,0.00035738,60]
[387166292,1758602842986,-2000.0,0.00035738,120]
[387166293,1758602843011,-552.0,0.00035738,120]
[387166294,1758602843037,-500.0,0.00035738,120]
[387166295,1758602843064,-391.4353,0.00035738,120]
[387166296,1758602843089,-599.0,0.00035738,120]
[387166297,1758602843114,-448.9,0.00035738,120]
[387166298,1758602843138,-1546.0,0.00035738,120]
[387166299,1758602843163,-612.25893079,0.00035738,120]
[387166300,1758602843398,-500.0,0.00035738,120]
[387166301,1758602843423,-500.0,0.00035738,120]
[387166302,1758602843449,-500.0,0.00035738,120]
[387166303,1758602843478,-561.69724224,0.00035738,120]
[387166304,1758602843506,-15683.01,0.00035738,120]
[387166305,1758602843533,-15683.01,0.00035738,120]
[387166306,1758602843559,-15683.01,0.00035738,120]
[387166307,1758602843589,-15683.01,0.00035738,120]
[387166308,1758602843614,-15683.01,0.00035738,120]
[387166309,1758602843640,-15683.01,0.00035738,120]
[387166310,1758602843665,-15683.01,0.00035738,120]
[387166311,1758602843690,-15683.01,0.00035738,120]
[387166312,1758602843715,-15683.01,0.00035738,120]
[387166313,1758602843740,-15683.01,0.00035738,120]
[387166314,1758602843764,-15683.01,0.00035738,120]
[387166315,1758602843791,-15683.01,0.00035738,120]
[387166316,1758602843816,-15683.01,0.00035738,120]
[387166317,1758602843842,-15683.01,0.00035738,120]
[387166318,1758602843870,-15683.01,0.00035738,120]
[387166319,1758602843898,-15683.01,0.00035738,120]
[387166320,1758602843924,-15683.01,0.00035738,120]
[387166321,1758602843950,-15683.01,0.00035738,120]
[387166322,1758602843976,-15683.01,0.00035738,120]
[387166323,1758602844002,-15683.01,0.00035738,120]
[387166324,1758602844028,-15683.01,0.00035738,120]
[387166325,1758602844054,-15683.01,0.00035738,120]
[387166326,1758602844080,-15683.01,0.00035738,120]
[387166327,1758602844106,-15683.0678,0.00035738,120]
[387166328,1758602844130,-1756.33881435,0.00035738,60]
[387166329,1758602844154,-192.7763,0.00035738,60]
[387166330,1758602844178,-22860.84227657,0.00035738,120]
[387166331,1758602844202,-65355.80560826,0.00035738,120]
[387166332,1758602844226,-6719.89487022,0.00035738,60]
[387166333,1758602844250,-1216.30995099,0.00035738,120]
[387166334,1758602844274,-53009.36967748,0.00035738,60]
[387166335,1758602844300,-66719.04198592,0.00035738,60]
[387166336,1758602844339,-60930.77665502,0.00035738,60]
[387166337,1758602844364,-165.99424272,0.00035738,120]
[387166338,1758602844389,-50000.0,0.00035738,90]
[387166339,1758602844414,-3988.3215788,0.00035738,120]
[387166340,1758602844439,-5367.34379631,0.00035738,120]
[387166341,1758602844466,-3271.0,0.00035738,120]
[387166342,1758602844490,-3768.51,0.00035738,120]
[387166343,1758602844518,-39458.51,0.00035738,90]
[387166344,1758602844555,-6084.54911181,0.00035738,120]
[387166345,1758602844579,-1736.70833248,0.00035738,120]
[387166346,1758602844604,-21706.04874961,0.00035738,120]
[387166347,1758602844633,-500.0,0.00035738,120]
[387166348,1758602854686,-185.72,0.00027397,80]
[387166349,1758602854725,-4291.42160673,0.0003,60]
[387166350,1758602854760,-2010.16103824,0.00030137,120]
[387166351,1758602854787,-1070.0,0.00030137,120]
[387166352,1758602854816,-10087.12363001,0.00030888,60]
[387166353,1758602854841,-712.45584231,0.00031,120]
[387166354,1758602854867,-5825.73174245,0.00031,120]
[387166355,1758602854893,-409.03832167,0.00031,120]
[387166356,1758602854920,-153.0,0.00031,120]
[387166357,1758602854946,-161.0,0.00031,120]
[387166358,1758602854972,-516.64379166,0.00031,120]
[387166359,1758602854998,-7880.0,0.0003107,90]
[387166360,1758602855025,-3500.0,0.00031232,120]
[387166361,1758602855053,-712.45584231,0.000313,120]
[387166362,1758602855078,-409.03832167,0.000313,120]
[387166363,1758602855110,-712.45584231,0.000316,120]
[387166364,1758602855138,-409.03832167,0.000316,120]
[387166365,1758602855164,-712.45584231,0.000319,120]
[387166366,1758602855188,-409.03832167,0.000319,120]
[387166367,1758602855213,-301.37780267,0.00031945,120]
[387166368,1758602855239,-712.45584231,0.000323,120]
[387166369,1758602855265,-409.03832167,0.000323,120]
[387166370,1758602855290,-60000.0,0.0003248,84]
[387166371,1758602855316,-1015.38,0.000325,120]
[387166372,1758602855344,-153.0,0.000327,120]
[387166373,1758602855381,-400.0,0.00032876,120]
[387166374,1758602855413,-342.55026094,0.00032876,120]
[387166375,1758602855449,-1973.56,0.00032876,120]
[387166376,1758602855495,-60000.0,0.0003289,86]
[387166377,1758602855532,-406.0,0.00033,120]
[387166378,1758602855569,-260.97,0.00033004,60]
[387166379,1758602855605,-260.97,0.00033104,60]
[387166380,1758602855642,-260.97,0.00033204,60]
[387166381,1758602855675,-200.0,0.00033284,120]
[387166382,1758602855709,-260.97,0.00033304,60]
[387166383,1758602855745,-260.97,0.00033404,60]
[387166384,1758602855777,-50000.0,0.00033458,84]
[387166385,1758602855811,-10000.0,0.0003348,81]
[387166386,1758602855846,-90000.0,0.0003348,88]
[387166387,1758602855876,-70000.0,0.00033485,87]
[387166388,1758602855910,-260.97,0.00033504,60]
[387166389,1758602855942,-260.97,0.00033604,60]
[387166390,1758602855977,-260.97,0.00033704,60]
[387166391,1758602856009,-4745.54,0.000338,120]
[387166392,1758602856040,-1015.38,0.000338,120]
[387166393,1758602856073,-260.97,0.00033804,60]
[387166394,1758602856104,-5000.0,0.000339,120]
[387166395,1758602856135,-260.97,0.00033904,60]
[387166396,1758602856164,-202.90810109,0.00034,120]
[387166397,1758602856193,-411.4775163,0.00034,120]
[387166398,1758602856223,-5000.0,0.00034,120]
[387166399,1758602856254,-260.97,0.00034004,60]
[387166400,1758602856285,-260.97,0.00034104,60]
[387166401,1758602856315,-50000.0,0.00034137,120]
[387166402,1758602856351,-20000.0,0.00034189,82]
[387166403,1758602856381,-10452.7528419,0.000342,120]
[387166404,1758602856411,-260.97,0.00034204,60]
[387166405,1758602856441,-1000.0,0.00034246,120]
[387166406,1758602856471,-1000.0,0.00034273,120]
[387166407,1758602856499,-1000.0,0.00034301,120]
[387166408,1758602856530,-260.97,0.00034304,60]
[387166409,1758602856561,-1000.0,0.00034328,120]
[387166410,1758602856592,-150.0,0.00034356,120]
[387166411,1758602856620,-727.09596279,0.00034356,120]
[387166412,1758602856649,-10000.0,0.000344,120]
[387166413,1758602856679,-153.0,0.000344,120]
[387166414,1758602856710,-260.97,0.00034404,60]
[387166415,1758602856741,-260.97,0.00034504,60]